[Event "*** SCC Grand Prix: Titled Tuesday Blitz"]
[Site "Chess.com"]
[Date "2020.06.23"]
[Round "4"]
[White "KyrgyzFighter"]
[Black "kingmonkey2006"]
[Result "0-1"]
[WhiteElo "2281"]
[BlackElo "2581"]
[TimeControl "180+1"]
[EndTime "10:40:40 PDT"]
[Termination "kingmonkey2006 won by resignation"]

1. c4 {[%clk 0:03:00.9]} 1... Nf6 {[%clk 0:02:57]} 2. Nc3 {[%clk 0:03:01]} 2...
d5 {[%clk 0:02:53.6]} 3. cxd5 {[%clk 0:03:00.7]} 3... Nxd5 {[%clk 0:02:54.5]} 4.
d4 {[%clk 0:03:01]} 4... e6 {[%clk 0:02:54]} 5. e4 {[%clk 0:02:59]} 5... Nxc3
{[%clk 0:02:53.7]} 6. bxc3 {[%clk 0:02:59.9]} 6... Be7 {[%clk 0:02:54.4]} 7. Nf3
{[%clk 0:02:58.3]} 7... O-O {[%clk 0:02:55.3]} 8. Be2 {[%clk 0:02:58.2]} 8... c5
{[%clk 0:02:53.3]} 9. O-O {[%clk 0:02:58.2]} 9... b6 {[%clk 0:02:52.2]} 10. d5
{[%clk 0:02:56.4]} 10... exd5 {[%clk 0:02:50.3]} 11. exd5 {[%clk 0:02:57.3]}
11... Bb7 {[%clk 0:02:51]} 12. c4 {[%clk 0:02:57.3]} 12... Bf6 {[%clk
0:02:48.7]} 13. Rb1 {[%clk 0:02:57.7]} 13... Nd7 {[%clk 0:02:36.6]} 14. Bf4
{[%clk 0:02:56.5]} 14... Re8 {[%clk 0:02:36]} 15. a4 {[%clk 0:02:52.8]} 15...
Ba6 {[%clk 0:02:28.6]} 16. Qc2 {[%clk 0:02:36.6]} 16... Ne5 {[%clk 0:02:23.3]}
17. Nxe5 {[%clk 0:02:17.4]} 17... Bxe5 {[%clk 0:02:24.2]} 18. Bxe5 {[%clk
0:02:18.3]} 18... Rxe5 {[%clk 0:02:23.5]} 19. f4 {[%clk 0:02:14.7]} 19... Re7
{[%clk 0:02:21.7]} 20. Bd3 {[%clk 0:02:13.9]} 20... h6 {[%clk 0:02:20.4]} 21. f5
{[%clk 0:02:11.6]} 21... Re5 {[%clk 0:01:55.8]} 22. f6 {[%clk 0:02:05.6]} 22...
gxf6 {[%clk 0:01:35.1]} 23. Rf3 {[%clk 0:02:04.3]} 23... Qe7 {[%clk 0:01:18.7]}
24. Qf2 {[%clk 0:01:41]} 24... Re8 {[%clk 0:01:10.2]} 25. Rxf6 {[%clk
0:01:13.9]} 25... Re1+ {[%clk 0:01:10]} 26. Rxe1 {[%clk 0:01:13.7]} 26... Qxe1+
{[%clk 0:01:10.9]} 27. Qxe1 {[%clk 0:01:14.6]} 27... Rxe1+ {[%clk 0:01:10.2]}
28. Kf2 {[%clk 0:01:15.1]} 28... Rd1 {[%clk 0:01:04.8]} 29. Be2 {[%clk
0:00:55.2]} 29... Rd4 {[%clk 0:01:03.6]} 30. a5 {[%clk 0:00:39]} 30... Bxc4
{[%clk 0:00:53.7]} 31. Bxc4 {[%clk 0:00:38.8]} 31... Rxc4 {[%clk 0:00:54.6]} 32.
axb6 {[%clk 0:00:39.5]} 32... axb6 {[%clk 0:00:54.6]} 33. Rxb6 {[%clk
0:00:40.4]} 33... Rd4 {[%clk 0:00:55.5]} 34. d6 {[%clk 0:00:40.3]} 34... Kf8
{[%clk 0:00:47]} 35. Rc6 {[%clk 0:00:38.5]} 35... Rd5 {[%clk 0:00:45.1]} 36.
Rc8+ {[%clk 0:00:25.8]} 36... Kg7 {[%clk 0:00:44.6]} 37. d7 {[%clk 0:00:24.3]}
37... Rxd7 {[%clk 0:00:44.8]} 38. Rxc5 {[%clk 0:00:24.6]} 38... Rd2+ {[%clk
0:00:45.7]} 39. Kf3 {[%clk 0:00:24.6]} 39... Ra2 {[%clk 0:00:46]} 40. h4 {[%clk
0:00:23.2]} 40... Ra3+ {[%clk 0:00:45.9]} 41. Kg4 {[%clk 0:00:23.3]} 41... Ra2
{[%clk 0:00:46.2]} 42. g3 {[%clk 0:00:23.2]} 42... Ra3 {[%clk 0:00:46.6]} 43.
Rf5 {[%clk 0:00:21.7]} 43... Kg6 {[%clk 0:00:46.6]} 44. h5+ {[%clk 0:00:20.2]}
44... Kg7 {[%clk 0:00:46.9]} 45. Rf3 {[%clk 0:00:20.5]} 45... Ra4+ {[%clk
0:00:46.8]} 46. Rf4 {[%clk 0:00:20.9]} 46... Ra2 {[%clk 0:00:47]} 47. Re4 {[%clk
0:00:20.5]} 47... Kf6 {[%clk 0:00:47.2]} 48. Rf4+ {[%clk 0:00:21.1]} 48... Ke6
{[%clk 0:00:47.7]} 49. Rf3 {[%clk 0:00:21.7]} 49... f6 {[%clk 0:00:46.9]} 50.
Re3+ {[%clk 0:00:21.6]} 50... Kf7 {[%clk 0:00:47.4]} 51. Kf5 {[%clk 0:00:22.2]}
51... Ra5+ {[%clk 0:00:47.7]} 52. Kg4 {[%clk 0:00:22.7]} 52... Rg5+ {[%clk
0:00:48.6]} 53. Kh4 {[%clk 0:00:22.8]} 53... f5 {[%clk 0:00:49.5]} 54. Rf3
{[%clk 0:00:22.9]} 54... Rg4+ {[%clk 0:00:49.4]} 55. Kh3 {[%clk 0:00:22.9]}
55... Kf6 {[%clk 0:00:50.1]} 56. Rf4 {[%clk 0:00:22.8]} 56... Rxf4 {[%clk
0:00:39.8]} 57. gxf4 {[%clk 0:00:23.7]} 57... Ke6 {[%clk 0:00:40.7]} 58. Kg3
{[%clk 0:00:23.1]} 58... Kd5 {[%clk 0:00:41.6]} 59. Kf3 {[%clk 0:00:19.4]} 59...
Kd4 {[%clk 0:00:40.6]} 60. Kf2 {[%clk 0:00:18.9]} 60... Ke4 {[%clk 0:00:40.6]}
61. Kg3 {[%clk 0:00:19.2]} 61... Ke3 {[%clk 0:00:40.8]} 62. Kh4 {[%clk
0:00:19.7]} 62... Kxf4 {[%clk 0:00:40.9]} 63. Kh3 {[%clk 0:00:20.3]} 63... Kg5
{[%clk 0:00:41.6]} 64. Kg3 {[%clk 0:00:20.5]} 64... Kxh5 {[%clk 0:00:42.5]} 65.
Kf4 {[%clk 0:00:21.4]} 65... Kg6 {[%clk 0:00:43.3]} 66. Kf3 {[%clk 0:00:21.8]}
66... Kg5 {[%clk 0:00:44.2]} 67. Kg3 {[%clk 0:00:22.7]} 67... f4+ {[%clk
0:00:45.1]} 68. Kf3 {[%clk 0:00:23.6]} 68... h5 {[%clk 0:00:45.6]} 69. Kf2
{[%clk 0:00:24.5]} 69... h4 {[%clk 0:00:46.5]} 70. Kg2 {[%clk 0:00:25.4]} 70...
Kg4 {[%clk 0:00:47.1]} 71. Kf2 {[%clk 0:00:26.3]} 71... f3 {[%clk 0:00:48]} 72.
Kg1 {[%clk 0:00:27.2]} 72... h3 {[%clk 0:00:48.9]} 73. Kf1 {[%clk 0:00:28.1]}
73... Kg3 {[%clk 0:00:49.8]} 74. Kg1 {[%clk 0:00:28.9]} 74... f2+ {[%clk
0:00:50.5]} 75. Kf1 {[%clk 0:00:29.4]} 75... h2 {[%clk 0:00:51]} 0-1

[Event "*** SCC Grand Prix: Titled Tuesday Blitz"]
[Site "Chess.com"]
[Date "2020.06.23"]
[Round "4"]
[White "NormWeinstein"]
[Black "kakakz"]
[Result "1/2-1/2"]
[WhiteElo "2517"]
[BlackElo "2350"]
[TimeControl "180+1"]
[EndTime "10:40:40 PDT"]
[Termination "Game drawn by repetition"]

1. e4 {[%clk 0:03:00.9]} 1... c5 {[%clk 0:02:59.5]} 2. Nf3 {[%clk 0:03:00.6]}
2... d6 {[%clk 0:02:59.9]} 3. Nc3 {[%clk 0:03:00.6]} 3... Nf6 {[%clk 0:02:59.5]}
4. e5 {[%clk 0:03:00.7]} 4... dxe5 {[%clk 0:02:59.5]} 5. Nxe5 {[%clk 0:03:01.1]}
5... e6 {[%clk 0:02:58.3]} 6. g3 {[%clk 0:02:59.6]} 6... Nbd7 {[%clk 0:02:56.3]}
7. Nc4 {[%clk 0:02:56.5]} 7... Nb6 {[%clk 0:02:52.6]} 8. b3 {[%clk 0:02:55.1]}
8... Be7 {[%clk 0:02:49.9]} 9. Bg2 {[%clk 0:02:54.8]} 9... O-O {[%clk 0:02:50]}
10. O-O {[%clk 0:02:54.7]} 10... Nbd5 {[%clk 0:02:38.3]} 11. Bb2 {[%clk
0:02:54.1]} 11... b6 {[%clk 0:02:27.8]} 12. d3 {[%clk 0:02:50.2]} 12... Bb7
{[%clk 0:02:27.5]} 13. Ne4 {[%clk 0:02:49.7]} 13... Nxe4 {[%clk 0:02:15.1]} 14.
dxe4 {[%clk 0:02:48.1]} 14... Nb4 {[%clk 0:02:12.5]} 15. Qe2 {[%clk 0:02:48.2]}
15... b5 {[%clk 0:01:35]} 16. Rfd1 {[%clk 0:02:35.8]} 16... Qc7 {[%clk
0:01:28.7]} 17. Be5 {[%clk 0:02:18.7]} 17... Qc6 {[%clk 0:01:13.2]} 18. Na5
{[%clk 0:02:16]} 18... Qb6 {[%clk 0:01:13.6]} 19. Nxb7 {[%clk 0:02:15]} 19...
Qxb7 {[%clk 0:01:14]} 20. Qg4 {[%clk 0:02:09.8]} 20... g6 {[%clk 0:01:06.9]} 21.
Rd2 {[%clk 0:01:56.1]} 21... Nc6 {[%clk 0:01:00.6]} 22. Bb2 {[%clk 0:01:50.8]}
22... Rad8 {[%clk 0:00:55.7]} 23. Rad1 {[%clk 0:01:49.8]} 23... Qc7 {[%clk
0:00:47.8]} 24. Qe2 {[%clk 0:01:29.6]} 24... a6 {[%clk 0:00:45]} 25. e5 {[%clk
0:01:24.4]} 25... Nd4 {[%clk 0:00:21.2]} 26. Bxd4 {[%clk 0:01:16.7]} 26... cxd4
{[%clk 0:00:20.8]} 27. Rxd4 {[%clk 0:01:17.1]} 27... Rxd4 {[%clk 0:00:21.3]} 28.
Rxd4 {[%clk 0:01:17]} 28... Rc8 {[%clk 0:00:22.2]} 29. c4 {[%clk 0:01:08.2]}
29... Bc5 {[%clk 0:00:21.2]} 30. Re4 {[%clk 0:00:57.4]} 30... b4 {[%clk
0:00:19.6]} 31. Qc2 {[%clk 0:00:46.6]} 31... Rd8 {[%clk 0:00:19.2]} 32. Re2
{[%clk 0:00:46.9]} 32... Qd7 {[%clk 0:00:18.7]} 33. h4 {[%clk 0:00:45.5]} 33...
h5 {[%clk 0:00:18]} 34. Kh2 {[%clk 0:00:45.1]} 34... a5 {[%clk 0:00:16.7]} 35.
Be4 {[%clk 0:00:44.4]} 35... Kg7 {[%clk 0:00:16]} 36. Kg2 {[%clk 0:00:41.6]}
36... Qd4 {[%clk 0:00:15.7]} 37. Bf3 {[%clk 0:00:37.7]} 37... Rd7 {[%clk
0:00:12.2]} 38. Bc6 {[%clk 0:00:30.8]} 38... Rd8 {[%clk 0:00:11.6]} 39. Qc1
{[%clk 0:00:22.9]} 39... Qd3 {[%clk 0:00:09.2]} 40. Qe1 {[%clk 0:00:19.6]} 40...
Qd4 {[%clk 0:00:06.4]} 41. Bf3 {[%clk 0:00:19]} 41... Qd3 {[%clk 0:00:06.5]} 42.
Re4 {[%clk 0:00:18.1]} 42... Rd7 {[%clk 0:00:06]} 43. Re2 {[%clk 0:00:16.9]}
43... Rd8 {[%clk 0:00:05.7]} 44. Be4 {[%clk 0:00:16.3]} 44... Qd4 {[%clk
0:00:05.8]} 45. Bc2 {[%clk 0:00:11.2]} 45... Rd7 {[%clk 0:00:05.7]} 46. Re4
{[%clk 0:00:09.2]} 46... Qd2 {[%clk 0:00:05.3]} 47. Re2 {[%clk 0:00:09.6]} 47...
Qd4 {[%clk 0:00:05.3]} 48. Be4 {[%clk 0:00:07.8]} 48... Rd8 {[%clk 0:00:03.9]}
49. Bf3 {[%clk 0:00:08.3]} 49... Rd7 {[%clk 0:00:03.9]} 50. Kg1 {[%clk
0:00:08.7]} 50... Rd8 {[%clk 0:00:03.9]} 51. Re4 {[%clk 0:00:08.6]} 51... Qd2
{[%clk 0:00:03.8]} 52. Re2 {[%clk 0:00:07.3]} 52... Qd4 {[%clk 0:00:03.8]} 53.
Kg2 {[%clk 0:00:06.2]} 1/2-1/2

[Event "*** SCC Grand Prix: Titled Tuesday Blitz"]
[Site "Chess.com"]
[Date "2020.06.23"]
[Round "4"]
[White "Smile2005"]
[Black "SharapovEvgeny"]
[Result "1-0"]
[WhiteElo "2541"]
[BlackElo "2368"]
[TimeControl "180+1"]
[EndTime "10:40:41 PDT"]
[Termination "Smile2005 won on time"]

1. d4 {[%clk 0:02:57.3]} 1... d5 {[%clk 0:02:59.5]} 2. c4 {[%clk 0:02:57.3]}
2... c6 {[%clk 0:02:59.5]} 3. cxd5 {[%clk 0:02:55]} 3... cxd5 {[%clk 0:02:58.7]}
4. Nc3 {[%clk 0:02:55.2]} 4... Nf6 {[%clk 0:02:58.6]} 5. Nf3 {[%clk 0:02:53.8]}
5... Nc6 {[%clk 0:02:57.7]} 6. Bf4 {[%clk 0:02:53.8]} 6... a6 {[%clk 0:02:56.6]}
7. e3 {[%clk 0:02:52.9]} 7... Bg4 {[%clk 0:02:55.1]} 8. Be2 {[%clk 0:02:51.8]}
8... e6 {[%clk 0:02:54]} 9. O-O {[%clk 0:02:51.7]} 9... Be7 {[%clk 0:02:53.6]}
10. Rc1 {[%clk 0:02:50.1]} 10... O-O {[%clk 0:02:52.7]} 11. Ne5 {[%clk
0:02:50.3]} 11... Bxe2 {[%clk 0:02:51.4]} 12. Qxe2 {[%clk 0:02:51.2]} 12... Nxe5
{[%clk 0:02:50.6]} 13. Bxe5 {[%clk 0:02:49.1]} 13... Rc8 {[%clk 0:02:48.2]} 14.
h3 {[%clk 0:02:43.1]} 14... Qd7 {[%clk 0:02:43.7]} 15. Qd3 {[%clk 0:02:20.3]}
15... Rc6 {[%clk 0:02:41.6]} 16. Ne2 {[%clk 0:02:11.1]} 16... Rfc8 {[%clk
0:02:39.9]} 17. Rxc6 {[%clk 0:02:10.5]} 17... Rxc6 {[%clk 0:02:38.7]} 18. Rc1
{[%clk 0:02:10]} 18... Rxc1+ {[%clk 0:02:35.7]} 19. Nxc1 {[%clk 0:02:09]} 19...
Qc6 {[%clk 0:02:34.8]} 20. Nb3 {[%clk 0:01:59.1]} 20... Nd7 {[%clk 0:02:24.8]}
21. Bf4 {[%clk 0:01:55.5]} 21... b5 {[%clk 0:02:19.3]} 22. Nd2 {[%clk 0:01:40]}
22... Nb6 {[%clk 0:02:09.1]} 23. b3 {[%clk 0:01:38.3]} 23... Nc8 {[%clk
0:02:03.3]} 24. e4 {[%clk 0:01:37.4]} 24... Nd6 {[%clk 0:01:58.8]} 25. exd5
{[%clk 0:01:35]} 25... Qxd5 {[%clk 0:01:58]} 26. Bxd6 {[%clk 0:01:31.1]} 26...
Bxd6 {[%clk 0:01:57.2]} 27. Ne4 {[%clk 0:01:26.5]} 27... Be7 {[%clk 0:01:48.7]}
28. Nc3 {[%clk 0:01:13.7]} 28... Qd6 {[%clk 0:01:47.6]} 29. Ne4 {[%clk
0:01:12.3]} 29... Qc6 {[%clk 0:01:42.8]} 30. f3 {[%clk 0:01:08.4]} 30... h6
{[%clk 0:01:41.6]} 31. Qc3 {[%clk 0:01:05]} 31... Qxc3 {[%clk 0:01:40.2]} 32.
Nxc3 {[%clk 0:01:04.6]} 32... Bf6 {[%clk 0:01:38.4]} 33. Ne2 {[%clk 0:01:02.9]}
33... Kf8 {[%clk 0:01:37.5]} 34. Kf2 {[%clk 0:01:02.9]} 34... Ke7 {[%clk
0:01:36.8]} 35. Ke3 {[%clk 0:01:03]} 35... Kd6 {[%clk 0:01:35.7]} 36. Ke4 {[%clk
0:01:02.1]} 36... Bd8 {[%clk 0:01:33.4]} 37. g4 {[%clk 0:01:00.7]} 37... g6
{[%clk 0:01:32.3]} 38. Nf4 {[%clk 0:00:56.6]} 38... f5+ {[%clk 0:01:27.2]} 39.
Kd3 {[%clk 0:00:41]} 39... g5 {[%clk 0:01:20.1]} 40. Ne2 {[%clk 0:00:40]} 40...
Bf6 {[%clk 0:01:10.1]} 41. Ng3 {[%clk 0:00:35.2]} 41... fxg4 {[%clk 0:01:00.7]}
42. fxg4 {[%clk 0:00:34.7]} 42... Kd5 {[%clk 0:00:58.7]} 43. Ne2 {[%clk
0:00:31.6]} 43... b4 {[%clk 0:00:57.4]} 44. Ke3 {[%clk 0:00:30.2]} 44... Bd8
{[%clk 0:00:54.6]} 45. Kd3 {[%clk 0:00:27.2]} 45... Bb6 {[%clk 0:00:53.9]} 46.
Ng3 {[%clk 0:00:12.3]} 46... Bxd4 {[%clk 0:00:51.7]} 47. Ne4 {[%clk 0:00:11]}
47... Bg7 {[%clk 0:00:44.1]} 48. Ke3 {[%clk 0:00:08.1]} 48... a5 {[%clk
0:00:36.7]} 49. Kd3 {[%clk 0:00:07.7]} 49... Ke5 {[%clk 0:00:34.7]} 50. Ke3
{[%clk 0:00:07.3]} 50... Bf8 {[%clk 0:00:33.2]} 51. Nd2 {[%clk 0:00:06.1]} 51...
Bc5+ {[%clk 0:00:30.8]} 52. Kd3 {[%clk 0:00:02.5]} 52... Kf4 {[%clk 0:00:30]}
53. Nc4 {[%clk 0:00:01.7]} 53... Kg3 {[%clk 0:00:27.6]} 54. Nxa5 {[%clk
0:00:02.6]} 54... Kxh3 {[%clk 0:00:23.8]} 55. Nb7 {[%clk 0:00:03.5]} 55... Be7
{[%clk 0:00:01.7]} 56. Ke4 {[%clk 0:00:03.1]} 56... Kxg4 {[%clk 0:00:01.4]} 57.
Na5 {[%clk 0:00:03.4]} 57... h5 {[%clk 0:00:01.3]} 58. Nc4 {[%clk 0:00:04.3]}
1-0

[Event "*** SCC Grand Prix: Titled Tuesday Blitz"]
[Site "Chess.com"]
[Date "2020.06.23"]
[Round "4"]
[White "Herracek"]
[Black "Grineva_Marianna"]
[Result "1-0"]
[WhiteElo "2574"]
[BlackElo "2198"]
[TimeControl "180+1"]
[EndTime "10:40:43 PDT"]
[Termination "Herracek won on time"]

1. c4 {[%clk 0:03:00.9]} 1... e5 {[%clk 0:02:58.3]} 2. g3 {[%clk 0:03:01.5]}
2... d6 {[%clk 0:02:58]} 3. Bg2 {[%clk 0:03:01.7]} 3... Be7 {[%clk 0:02:58.7]}
4. d4 {[%clk 0:02:58.6]} 4... f5 {[%clk 0:02:58.1]} 5. dxe5 {[%clk 0:02:58.2]}
5... dxe5 {[%clk 0:02:59]} 6. Qxd8+ {[%clk 0:02:58.6]} 6... Bxd8 {[%clk
0:02:59.3]} 7. Nc3 {[%clk 0:02:58.8]} 7... Nf6 {[%clk 0:02:58.9]} 8. Nf3 {[%clk
0:02:56]} 8... Nc6 {[%clk 0:02:57.6]} 9. O-O {[%clk 0:02:49.9]} 9... e4 {[%clk
0:02:54.5]} 10. Nd2 {[%clk 0:02:44.8]} 10... Nd4 {[%clk 0:02:44.5]} 11. e3
{[%clk 0:02:40.8]} 11... Nc2 {[%clk 0:02:42.9]} 12. Rb1 {[%clk 0:02:39.8]} 12...
Nb4 {[%clk 0:02:43.4]} 13. b3 {[%clk 0:02:35.8]} 13... a5 {[%clk 0:02:20.9]} 14.
Rd1 {[%clk 0:02:32.6]} 14... O-O {[%clk 0:02:15.2]} 15. Ba3 {[%clk 0:02:32]}
15... c6 {[%clk 0:02:08.6]} 16. Na4 {[%clk 0:02:14.6]} 16... Be7 {[%clk
0:01:54.4]} 17. Nb6 {[%clk 0:02:13.4]} 17... Rb8 {[%clk 0:01:51.4]} 18. Nxc8
{[%clk 0:02:08]} 18... Rbxc8 {[%clk 0:01:50.2]} 19. Nf1 {[%clk 0:01:47]} 19...
Rfd8 {[%clk 0:01:48.8]} 20. h3 {[%clk 0:01:38]} 20... Kf7 {[%clk 0:01:46.7]} 21.
g4 {[%clk 0:01:37.6]} 21... g6 {[%clk 0:01:39]} 22. Ng3 {[%clk 0:01:34]} 22...
Ke6 {[%clk 0:01:37.4]} 23. gxf5+ {[%clk 0:01:31.8]} 23... gxf5 {[%clk
0:01:37.1]} 24. Ne2 {[%clk 0:01:19.2]} 24... Rg8 {[%clk 0:01:04.5]} 25. Nd4+
{[%clk 0:01:17.1]} 25... Kf7 {[%clk 0:00:44.1]} 26. Nxf5 {[%clk 0:01:16.4]}
26... Rg5 {[%clk 0:00:41.4]} 27. Nxe7 {[%clk 0:01:02.1]} 27... Kxe7 {[%clk
0:00:36.6]} 28. Kh2 {[%clk 0:00:51]} 28... Rcg8 {[%clk 0:00:35.8]} 29. Rg1
{[%clk 0:00:50]} 29... Ke6 {[%clk 0:00:35.1]} 30. Bxb4 {[%clk 0:00:49.9]} 30...
axb4 {[%clk 0:00:34.5]} 31. Bh1 {[%clk 0:00:47.5]} 31... h6 {[%clk 0:00:28.4]}
32. Rxg5 {[%clk 0:00:47.2]} 32... hxg5 {[%clk 0:00:29.3]} 33. Kg3 {[%clk
0:00:46.6]} 33... Ra8 {[%clk 0:00:28.3]} 34. Rb2 {[%clk 0:00:47]} 34... Rd8
{[%clk 0:00:26.4]} 35. Bg2 {[%clk 0:00:46.3]} 35... Rd1 {[%clk 0:00:23.8]} 36.
Kh2 {[%clk 0:00:43]} 36... Ke5 {[%clk 0:00:22.4]} 37. Rc2 {[%clk 0:00:39]} 37...
Nd7 {[%clk 0:00:20.6]} 38. Kg3 {[%clk 0:00:39.3]} 38... Nc5 {[%clk 0:00:20.1]}
39. f3 {[%clk 0:00:36.3]} 39... exf3 {[%clk 0:00:17.6]} 40. Bxf3 {[%clk
0:00:37.2]} 40... Rd3 {[%clk 0:00:15.6]} 41. Kf2 {[%clk 0:00:35.3]} 41... Ne4+
{[%clk 0:00:13.1]} 42. Bxe4 {[%clk 0:00:34.2]} 42... Kxe4 {[%clk 0:00:14]} 43.
Re2 {[%clk 0:00:31.1]} 43... Rc3 {[%clk 0:00:13.9]} 44. Kg3 {[%clk 0:00:26.2]}
44... Kf5 {[%clk 0:00:08.8]} 45. Kf3 {[%clk 0:00:25.2]} 45... Ke5 {[%clk
0:00:08.4]} 46. Rd2 {[%clk 0:00:25.5]} 46... b5 {[%clk 0:00:08]} 47. cxb5 {[%clk
0:00:25.3]} 47... cxb5 {[%clk 0:00:08.9]} 48. Rd7 {[%clk 0:00:25.1]} 48... Rc2
{[%clk 0:00:09.1]} 49. Rb7 {[%clk 0:00:25.3]} 49... Rxa2 {[%clk 0:00:07.7]} 50.
Rxb5+ {[%clk 0:00:25.5]} 50... Kf6 {[%clk 0:00:07.4]} 51. Rxb4 {[%clk
0:00:25.9]} 51... Rh2 {[%clk 0:00:07.6]} 52. Rb6+ {[%clk 0:00:26]} 52... Kf5
{[%clk 0:00:07]} 53. Rb5+ {[%clk 0:00:26.3]} 53... Kf6 {[%clk 0:00:07.2]} 54.
Kg4 {[%clk 0:00:23.6]} 54... Re2 {[%clk 0:00:07]} 55. Rf5+ {[%clk 0:00:22.4]}
55... Ke6 {[%clk 0:00:07.3]} 56. Rf3 {[%clk 0:00:21.2]} 56... Rb2 {[%clk
0:00:06.6]} 57. e4 {[%clk 0:00:17.9]} 57... Ke5 {[%clk 0:00:06.9]} 58. Kxg5
{[%clk 0:00:16.7]} 58... Kxe4 {[%clk 0:00:06.7]} 59. Rg3 {[%clk 0:00:16.8]}
59... Rb1 {[%clk 0:00:05]} 60. h4 {[%clk 0:00:17.2]} 60... Ke5 {[%clk
0:00:05.4]} 61. h5 {[%clk 0:00:17.5]} 61... Ke6 {[%clk 0:00:06]} 62. Kg6 {[%clk
0:00:18]} 62... Rh1 {[%clk 0:00:05.1]} 63. h6 {[%clk 0:00:18.1]} 63... Ra1
{[%clk 0:00:03.7]} 64. h7 {[%clk 0:00:17.7]} 64... Ra8 {[%clk 0:00:04.3]} 65.
Rh3 {[%clk 0:00:17.1]} 65... Ke5 {[%clk 0:00:02.4]} 66. h8=Q+ {[%clk 0:00:16.9]}
66... Rxh8 {[%clk 0:00:01.1]} 67. Rxh8 {[%clk 0:00:17.8]} 1-0

[Event "*** SCC Grand Prix: Titled Tuesday Blitz"]
[Site "Chess.com"]
[Date "2020.06.23"]
[Round "4"]
[White "mshuaau0"]
[Black "HouseOfDurin"]
[Result "1-0"]
[WhiteElo "2203"]
[BlackElo "1906"]
[TimeControl "180+1"]
[EndTime "10:40:44 PDT"]
[Termination "mshuaau0 won by checkmate"]

1. e4 {[%clk 0:03:00.9]} 1... c5 {[%clk 0:03:00.2]} 2. Nf3 {[%clk 0:03:01.2]}
2... Nc6 {[%clk 0:03:00.7]} 3. d4 {[%clk 0:03:01.3]} 3... cxd4 {[%clk
0:03:01.6]} 4. Nxd4 {[%clk 0:03:02]} 4... e5 {[%clk 0:03:02.2]} 5. Nb3 {[%clk
0:02:57]} 5... Nf6 {[%clk 0:03:00.6]} 6. Nc3 {[%clk 0:02:56.2]} 6... Bb4 {[%clk
0:03:01.2]} 7. Bg5 {[%clk 0:02:40.8]} 7... Bxc3+ {[%clk 0:03:00.4]} 8. bxc3
{[%clk 0:02:40.1]} 8... O-O {[%clk 0:02:58.9]} 9. Qf3 {[%clk 0:02:35.3]} 9... h6
{[%clk 0:02:58.7]} 10. Bxf6 {[%clk 0:02:34.2]} 10... Qxf6 {[%clk 0:02:59.6]} 11.
Qxf6 {[%clk 0:02:33.8]} 11... gxf6 {[%clk 0:03:00.5]} 12. Bc4 {[%clk 0:02:30.2]}
12... Rd8 {[%clk 0:02:13.9]} 13. O-O-O {[%clk 0:02:24.9]} 13... Kf8 {[%clk
0:02:07.2]} 14. Rd3 {[%clk 0:02:22.8]} 14... Ke7 {[%clk 0:02:02.7]} 15. Rhd1
{[%clk 0:02:20.4]} 15... d6 {[%clk 0:02:03.1]} 16. f4 {[%clk 0:01:52]} 16... Bg4
{[%clk 0:01:52.2]} 17. R1d2 {[%clk 0:01:09.8]} 17... exf4 {[%clk 0:01:42.2]} 18.
Bd5 {[%clk 0:00:51.6]} 18... Ne5 {[%clk 0:01:32.1]} 19. Rd4 {[%clk 0:00:51.5]}
19... f3 {[%clk 0:01:02.7]} 20. Bxb7 {[%clk 0:00:50.6]} 20... Rab8 {[%clk
0:00:51]} 21. Na5 {[%clk 0:00:42.4]} 21... Be6 {[%clk 0:00:35.9]} 22. gxf3
{[%clk 0:00:26]} 22... Nxf3 {[%clk 0:00:35.5]} 23. Nc6+ {[%clk 0:00:25.4]} 23...
Ke8 {[%clk 0:00:24.9]} 24. Nxb8 {[%clk 0:00:17.5]} 24... Nxd4 {[%clk 0:00:21.7]}
25. cxd4 {[%clk 0:00:12.4]} 25... Rxb8 {[%clk 0:00:20.2]} 26. Bc6+ {[%clk
0:00:12.7]} 26... Bd7 {[%clk 0:00:20.7]} 27. Bxd7+ {[%clk 0:00:12.5]} 27... Kxd7
{[%clk 0:00:21.6]} 28. Rg2 {[%clk 0:00:11.4]} 28... Re8 {[%clk 0:00:20.6]} 29.
Rg4 {[%clk 0:00:10.3]} 29... f5 {[%clk 0:00:18.9]} 30. exf5 {[%clk 0:00:09.8]}
30... Re1+ {[%clk 0:00:19.4]} 31. Kb2 {[%clk 0:00:09.5]} 31... Re2 {[%clk
0:00:18.2]} 32. Rh4 {[%clk 0:00:09.7]} 32... Rf2 {[%clk 0:00:17.8]} 33. Rh5
{[%clk 0:00:09.6]} 33... Rf4 {[%clk 0:00:17.5]} 34. Kb3 {[%clk 0:00:08.4]} 34...
Kc6 {[%clk 0:00:17.1]} 35. c3 {[%clk 0:00:08.2]} 35... a5 {[%clk 0:00:15.5]} 36.
h3 {[%clk 0:00:08.5]} 36... f6 {[%clk 0:00:09.3]} 37. Ka4 {[%clk 0:00:05.2]}
37... Kd5 {[%clk 0:00:07.4]} 38. Rxh6 {[%clk 0:00:04.8]} 38... Rxf5 {[%clk
0:00:06.5]} 39. Kxa5 {[%clk 0:00:05.3]} 39... Kc4+ {[%clk 0:00:06.9]} 40. Kb6
{[%clk 0:00:05.5]} 40... Kxc3 {[%clk 0:00:07.2]} 41. a4 {[%clk 0:00:05.2]} 41...
Kxd4 {[%clk 0:00:07.4]} 42. a5 {[%clk 0:00:05.3]} 42... Ke4 {[%clk 0:00:06]} 43.
a6 {[%clk 0:00:05.6]} 43... Rf1 {[%clk 0:00:06]} 44. a7 {[%clk 0:00:05.5]} 44...
Rb1+ {[%clk 0:00:06.4]} 45. Kc7 {[%clk 0:00:06.1]} 45... Ra1 {[%clk 0:00:06.5]}
46. Kb7 {[%clk 0:00:06.8]} 46... d5 {[%clk 0:00:05.8]} 47. Rxf6 {[%clk 0:00:06]}
47... Rb1+ {[%clk 0:00:06.4]} 48. Kc7 {[%clk 0:00:05.6]} 48... Ra1 {[%clk
0:00:06.7]} 49. Kb7 {[%clk 0:00:05.8]} 49... Rb1+ {[%clk 0:00:07]} 50. Rb6
{[%clk 0:00:06.2]} 50... Ra1 {[%clk 0:00:06.5]} 51. a8=Q {[%clk 0:00:06.6]}
51... Rxa8 {[%clk 0:00:06.1]} 52. Kxa8 {[%clk 0:00:07.5]} 52... d4 {[%clk
0:00:06.7]} 53. Rd6 {[%clk 0:00:07.9]} 53... d3 {[%clk 0:00:07.5]} 54. Rd8
{[%clk 0:00:08.3]} 54... Ke3 {[%clk 0:00:07.3]} 55. h4 {[%clk 0:00:08.7]} 55...
d2 {[%clk 0:00:08.2]} 56. h5 {[%clk 0:00:09.2]} 56... Ke2 {[%clk 0:00:09.1]} 57.
Rxd2+ {[%clk 0:00:08.9]} 57... Kxd2 {[%clk 0:00:08.7]} 58. h6 {[%clk 0:00:09.8]}
58... Ke3 {[%clk 0:00:09.6]} 59. h7 {[%clk 0:00:10.7]} 59... Kf4 {[%clk
0:00:10.4]} 60. h8=Q {[%clk 0:00:11.6]} 60... Kg5 {[%clk 0:00:11.2]} 61. Kb7
{[%clk 0:00:12.5]} 61... Kf5 {[%clk 0:00:11.6]} 62. Kc6 {[%clk 0:00:13.4]} 62...
Ke6 {[%clk 0:00:12.1]} 63. Qd4 {[%clk 0:00:14.3]} 63... Kf5 {[%clk 0:00:12.5]}
64. Qd5+ {[%clk 0:00:14.4]} 64... Kf6 {[%clk 0:00:12.1]} 65. Kd6 {[%clk
0:00:14.3]} 65... Kg7 {[%clk 0:00:11.6]} 66. Qf5 {[%clk 0:00:14.4]} 66... Kh6
{[%clk 0:00:11.5]} 67. Qg4 {[%clk 0:00:14.4]} 67... Kh7 {[%clk 0:00:11.8]} 68.
Ke6 {[%clk 0:00:15.3]} 68... Kh8 {[%clk 0:00:12.6]} 69. Kf6 {[%clk 0:00:16.2]}
69... Kh7 {[%clk 0:00:08.2]} 70. Qg7# {[%clk 0:00:17.1]} 1-0